Cogmind - Beta 15 @@@ ROGUE MODE // 2025.07.31 @ 23:00:37 Player: ErikJake Result: Destroyed by Y-45 Defender with Beam Rifle Performance ------------- Evolutions (2) 1000 Regions Visited (4) 800 Robots Destroyed (63) 315 Value Destroyed (1353) 1353 Prototype IDs (0) 0 Alien Tech Used (0) 0 Bonus (56) 56 TOTAL SCORE: 3524 Bonus ------- Follower Combat Kills 56 Cogmind --------- Core Integrity 0/550 Matter 300/300 Energy 100/100 System Corruption 0% Temperature Cool (9) Movement Core (200) Ox3 Location -8/Materials Parts ------- > --- POWER (1) -------- (None) > --- PROPULSION (4) --- (None) > --- UTILITY (4) ------ Medium Storage Unit > --- WEAPON (2) ------- (None) > --- INVENTORY (10) --- Light Ion Engine Light Ion Engine Flight Unit Visual Processing Unit Sensor Array Signal Interpreter Hacking Suite System Shield System Shield Peak State ------------ > --- POWER ------------ Improved Ion Engine > --- PROPULSION ------- Light Treads Light Treads Light Treads Improved Treads > --- UTILITY ---------- Medium Storage Unit Hacking Suite > --- WEAPON ----------- Heavy Assault Rifle Improved Light Cannon > --- INVENTORY -------- Ion Engine Light Ion Engine Light Treads Sensor Array Signal Interpreter Hacking Suite EM Pulse Gun Assault Rifle Light Cannon Improved Light Cannon [Rating: 16] Favorites ----------- Power Improved Ion Engine Engine Improved Ion Engine Propulsion Light Treads Treads Light Treads Leg Aluminum Leg Wheel Compact Wheel Flight Unit Flight Unit Utility Medium Storage Unit Device Sensor Array Storage Medium Storage Unit Hackware Hacking Suite Weapon Improved Light Cannon Energy Gun Field Laser Ballistic Gun Assault Rifle Ballistic Cannon Improved Light Cannon Build | -11 -10 -9 -9 -8 ------- Run | Yrd Mat Mat Min Mat Slots Evolved 4 | . . 2 . 2 Power . | . . . . . Propulsion 2 | . . 2 . . Utility 2 | . . . . 2 Weapon . | . . . . . Parts Attached 35 | 6 11 14 1 3 Power 4 | 1 . 2 1 . Engine 4 | 1 . 2 1 . Core . | . . . . . Reactor . | . . . . . Propulsion 13 | 2 4 7 . . Treads 8 | . 2 6 . . Leg 3 | 2 1 . . . Wheel 1 | . 1 . . . Hover . | . . . . . Flight 1 | . . 1 . . Utility 6 | 1 3 2 . . Device 1 | . 1 . . . Storage 4 | 1 2 1 . . Processor . | . . . . . Hackware 1 | . . 1 . . Protection . | . . . . . Artifact . | . . . . . Weapon 12 | 2 4 3 . 3 Energy Gun 3 | 2 . . . 1 Energy Cannon . | . . . . . Ballistic Gun 5 | . 4 1 . . Ballistic Cannon 4 | . . 2 . 2 Launcher . | . . . . . Special Weapon . | . . . . . Impact Weapon . | . . . . . Slashing Weapon . | . . . . . Piercing Weapon . | . . . . . Special Melee Weapon . | . . . . . Unidentified Prototypes . | . . . . . Parts Lost 18 | . 5 1 1 11 Power 3 | . 1 . 1 1 Propulsion 6 | . 1 1 . 4 Utility 3 | . 2 . . 1 Weapon 6 | . 1 . . 5 Highest Loss Streak 9 | . 2 1 1 9 To Critical Strikes . | . . . . . Average Backups 8 | 4 7 9 9 9 Power 1 | . 1 2 1 1 Propulsion 1 | 1 2 1 1 1 Utility 4 | . 2 4 6 6 Weapon 1 | . 1 1 1 . Tool/Special . | . . . . . Unused Backups 13 | . 1 3 . 9 Power 2 | . . . . 2 Propulsion 2 | . 1 . . 1 Utility 8 | . . 2 . 6 Weapon 1 | . . 1 . . Tool/Special . | . . . . . Average Slot Usage (%) 92 | . 92 96 99 44 Engine 9 | . 10 9 10 4 Treads 28 | . 6 39 33 9 Leg 4 | . 21 2 . . Flight 5 | . . 2 11 3 Device 1 | . 7 . . . Storage 11 | . 17 10 11 9 Hackware 8 | . . 9 11 6 Ballistic Gun 8 | . 26 10 . . Ballistic Cannon 13 | . . 11 22 7 Peak Build Rating 16 | 6 8 16 16 16 Average Rating 12 | 4 6 14 15 9 On Entrance 8 | . 6 6 16 15 Naked Turns . | . . . . . Heaviest Build 90 | 13 90 84 25 23 Greatest Support 83 | 20 40 83 63 63 Greatest Overweight (x) 7 | . 2 2 . 7 Average Overweight (x) . | . . . . 1 Largest Inventory Capacity 25 | 8 25 25 10 10 Average Capacity 10 | 6 12 11 10 10 Most Carried 10 | 7 10 10 10 10 Average Carried 8 | 4 7 9 9 9 Final Capacity 25 | 8 25 10 10 10 Final Carried 10 | 7 10 10 9 9 Class Distribution -------------------- 96% | Mutant 3% | Scavenger-Mutant Dominant Class ---------------- Mutant | -10/Materials Mutant | -9/Materials Mutant | -9/Mines Mutant | -8/Materials Resources | -11 -10 -9 -9 -8 ----------- Run | Yrd Mat Mat Min Mat Matter Collected 1546 | 268 283 507 359 129 Remotely . | . . . . . Salvage Created 1641 | 53 502 695 239 152 Parts 129 | 3 35 55 24 12 Haulers Intercepted 2 | . 1 1 . . Recyclers Shooed 6 | . . 3 3 . Parts Field Recycled . | . . . . . Retrieved Matter . | . . . . . Parts Self-Destructed . | . . . . . Prevented . | . . . . . Kills | -11 -10 -9 -9 -8 ------- Run | Yrd Mat Mat Min Mat Combat Hostiles Destroyed 40 | . 8 18 8 6 Guns 18 | . 7 10 . 1 Cannons 21 | . . 8 8 5 AOE 1 | . 1 . . . Classes Destroyed 11 | 2 5 3 1 . Worker 7 | 1 1 3 2 . Builder 1 | . . . 1 . Tunneler 4 | 1 1 1 1 . Hauler 2 | . 1 1 . . Recycler 4 | . 1 . 2 1 Operator 2 | . 2 . . . Watcher 3 | . 2 1 . . Swarmer 15 | . . 6 5 4 Grunt 20 | . 8 7 3 2 Duelist 1 | . . 1 . . Sentry 4 | . . 4 . . Best Kill Streak 5 | 2 5 5 4 4 Combat Bots Only 4 | . 3 4 3 4 Max Kills in Single Turn 2 | 1 2 2 2 1 Gunslinging 1 | . . 1 . . Exploded 1 | . 1 . . . Melee . | . . . . . Uniques/NPCs Destroyed . | . . . . . Combat | -11 -10 -9 -9 -8 -------- Run | Yrd Mat Mat Min Mat Hostile Shots Fired 374 | . 75 98 58 143 Missed 109 | . 20 37 14 38 Hits 265 | . 55 61 44 105 Melee 2 | . . 2 . . Projectile 263 | . 55 59 44 105 Critical Strikes 9 | . . 2 1 6 Damage Taken 3312 | . 822 751 389 1350 Core 735 | . 87 61 24 563 Absorbed by Shields . | . . . . . Core Remaining (%) 81 | 100 65 . 78 . Volleys Fired 159 | 2 37 70 29 21 Largest 2 | 2 2 2 2 2 Hottest 80 | 80 80 66 66 70 Shots Fired 303 | 4 70 140 58 31 Gun 176 | 4 70 96 . 6 Cannon 127 | . . 44 58 25 Launcher . | . . . . . Special . | . . . . . Kinetic 291 | . 68 140 58 25 Thermal 9 | 2 1 . . 6 Explosive . | . . . . . Electromagnetic 3 | 2 1 . . . Robot Hit Streak 10 | 2 10 9 8 6 Robot Miss Streak 7 | . 3 4 3 7 Penetration Max . | . . . . . Secondary Targets 3 | . 2 1 . . Max Gunslinging Chain 1 | . 1 1 . . Shots Hit Robots 182 | 2 43 88 27 22 Core Hits 92 | 2 28 35 13 14 Critical Kills . | . . . . . Critical Parts Destroyed 2 | . . 2 . . Critical Strikes 5 | . . 3 2 . Destroy 2 | . . 2 . . Blast 3 | . . 1 2 . Melee Attacks . | . . . . . Impact . | . . . . . Slashing . | . . . . . Piercing . | . . . . . Sneak Attacks . | . . . . . Combat Hostiles . | . . . . . Follow-up Attacks . | . . . . . Damage Inflicted 3271 | 36 750 1447 634 404 Guns 1628 | 36 561 931 . 100 Cannons 1386 | . . 516 591 279 Explosions 178 | . 178 . . . Melee . | . . . . . Ramming 79 | . 11 . 43 25 Kinetic 2863 | . 546 1447 591 279 Thermal 123 | 23 . . . 100 Explosive 178 | . 178 . . . Electromagnetic 28 | 13 15 . . . Impact . | . . . . . Slashing . | . . . . . Piercing . | . . . . . Highest Corruption . | . . . . . Average Corruption . | . . . . . Corruption Purged . | . . . . . Corruption Blocked . | . . . . . Overload Shots . | . . . . . Overflow Damage 29 | . 5 . 10 14 Projectiles 24 | . . . 10 14 Explosions 5 | . 5 . . . Melee . | . . . . . Knockbacks 16 | . . 6 5 5 Impact . | . . . . . Kinetic 15 | . . 5 5 5 Secondary 1 | . . 1 . . Self-Inflicted Damage 177 | . 168 . . 9 Shots 2 | . 2 . . . Rammed 31 | . 1 . 10 20 Targets Rammed 37 | . 4 . 13 20 Kicked 3 | . 3 . . . Crushed 3 | . . . 3 . Highest Temperature 63 | 18 18 17 63 54 Average Temperature 18 | 12 5 4 37 27 Received Heat Transfer 1269 | . 363 294 63 549 Siege Activations . | . . . . . Martial Activations . | . . . . . Shielding Activations . | . . . . . Robots Disrupted . | . . . . . Combat Hostiles . | . . . . . Robots Corrupted . | . . . . . Combat Hostiles . | . . . . . Parts Fried . | . . . . . Impact Corruptions . | . . . . . Robots Melted . | . . . . . Combat Hostiles . | . . . . . Parts Melted 2 | . . . . 2 Heat Transferred 272 | 50 . . . 222 Parts Sabotaged . | . . . . . Parts Stolen . | . . . . . Parts Stripped . | . . . . . Power Chain Reactions . | . . . . . Alert | -11 -10 -9 -9 -8 ------- Run | Yrd Mat Mat Min Mat Maximum Alert Level 1 | . . 1 . . Low Security (%) 91 | 100 100 75 100 100 Level 1 8 | . . 24 . . Level 2 . | . . . . . Level 3 . | . . . . . Level 4 . | . . . . . Level 5 . | . . . . . High Security . | . . . . . Max Security . | . . . . . Peak Influence 266 | 5 128 266 194 45 Initial 63 | . . 40 63 . Average 90 | . 43 156 73 9 Influence Increases 1604 | 10 383 608 453 150 Destroy 0b10 Robot/C 960 | . 160 360 320 120 Destroy 0b10 Robot/NC 115 | 10 40 30 30 5 Destroy Leader 210 | . 56 94 50 10 Allied During Kill 18 | . . . 18 . Successful Hack 31 | . 19 12 . . Disable Machine 105 | . 75 . 15 15 Destroy Structure 30 | . 18 7 5 . Lose Combat Pursuer 135 | . 15 105 15 . Influence Decreases 1604 | 10 287 541 616 150 Entered New Map 156 | . . 56 100 . Time Decay 1282 | 10 251 475 466 80 Lost Part 126 | . 36 10 10 70 Lost Ally 40 | . . . 40 . Squads Dispatched 4 | . 3 1 . . Investigation 3 | . 2 1 . . Extermination . | . . . . . Reinforcement 1 | . 1 . . . Assault . | . . . . . Garrison . | . . . . . Intercept . | . . . . . Searches Triggered . | . . . . . Construction Impeded . | . . . . . Haulers Reinforced . | . . . . . Active Scanning Responses . | . . . . . Cargo Convoy Interrupts . | . . . . . Stealth | -11 -10 -9 -9 -8 --------- Run | Yrd Mat Mat Min Mat Distress Signals 3 | . 2 . . 1 Communications Jammed . | . . . . . Distress Signals . | . . . . . Times Spotted 67 | . 15 27 17 8 Peak Tracking Total 7 | . 4 7 4 7 Tactical Retreats 7 | . 1 5 1 . Traps | -11 -10 -9 -9 -8 ------- Run | Yrd Mat Mat Min Mat Traps Triggered 2 | . 2 . . . Indirectly . | . . . . . Trap Hack Attempts . | . . . . . Triggered . | . . . . . Disarmed . | . . . . . Reprogrammed . | . . . . . Reused . | . . . . . Traps Extracted . | . . . . . Installed . | . . . . . Triggered . | . . . . . Machines | -11 -10 -9 -9 -8 ---------- Run | Yrd Mat Mat Min Mat Machines Disabled 7 | . 5 . 1 1 Max in Single Turn 5 | . 5 . 1 1 Machines Repaired . | . . . . . Machines Dismantled . | . . . . . Machines Sabotaged . | . . . . . Overloaded Fab Kills . | . . . . . Hacking | -11 -10 -9 -9 -8 --------- Run | Yrd Mat Mat Min Mat Machines Accessed 8 | . 3 5 . . Terminals 8 | . 3 5 . . Fabricators . | . . . . . Repair Stations . | . . . . . Recycling Units . | . . . . . Scanalyzers . | . . . . . Garrison Access . | . . . . . Total Hacks 21 | . 6 15 . . Successful 10 | . 2 8 . . Failed 11 | . 4 7 . . Catastrophic . | . . . . . Database Lockouts . | . . . . . Manual . | . . . . . Terminals 21 | . 6 15 . . Fabricators . | . . . . . Repair Stations . | . . . . . Recycling Units . | . . . . . Scanalyzers . | . . . . . Garrison Access . | . . . . . Terminal Hacks 10 | . 2 8 . . Record 2 | . . 2 . . Emergency Access Points 1 | . . 1 . . Alert Level 1 | . . 1 . . Recall Investigation 1 | . . 1 . . Recall Reinforcements 1 | . . 1 . . Hauler Manifests 2 | . 1 1 . . Zone Layout 2 | . 1 1 . . Fabricator Hacks . | . . . . . Repair Station Hacks . | . . . . . Recycling Unit Hacks . | . . . . . Scanalyzer . | . . . . . Garrison Access Hacks . | . . . . . Unauthorized Hacks . | . . . . . Terminals . | . . . . . Fabricators . | . . . . . Repair Stations . | . . . . . Recycling Units . | . . . . . Scanalyzers . | . . . . . Garrison Access . | . . . . . Data Cores Recovered 1 | . 1 . . . Used . | . . . . . Hacking Detections 6 | . 3 3 . . Full Trace Events 1 | . . 1 . . Feedback Events . | . . . . . Feedback Blocked . | . . . . . Robot Schematics Acquired . | . . . . . Robots Built . | . . . . . Authchips . | . . . . . Time . | . . . . . Total Robot Build Rating . | . . . . . Part Schematics Acquired . | . . . . . Parts Built . | . . . . . Authchips . | . . . . . Time . | . . . . . Total Part Build Rating . | . . . . . Parts Repaired . | . . . . . Time . | . . . . . Parts Recycled . | . . . . . Recycled Matter . | . . . . . Retrieved Matter . | . . . . . Retrieved Components . | . . . . . Parts Scanalyzed . | . . . . . Part Schematics Acquired . | . . . . . Parts Damaged . | . . . . . Bothacking | -11 -10 -9 -9 -8 ------------ Run | Yrd Mat Mat Min Mat Used RIF Installer . | . . . . . Robots Hacked . | . . . . . Non-combat . | . . . . . Combat . | . . . . . Robot Hacks Applied . | . . . . . Relay Couplers Released . | . . . . . Fabnet Peak Effective % . | . . . . . Robots Rewired . | . . . . . Allies Hacked . | . . . . . Hacks Repelled . | . . . . . Allies | -11 -10 -9 -9 -8 -------- Run | Yrd Mat Mat Min Mat Total Allies 3 | . . . 3 . Largest Group 3 | . . . 3 1 Highest-Rated Group 40 | . . . 40 8 Highest-Rated Ally 16 | . . . 16 8 Total Orders . | . . . . . Ally Attacks 34 | . . . 34 . Total Damage 187 | . . . 187 . Kills 8 | . . . 8 . Allies Corrupted . | . . . . . Allies Melted . | . . . . . Intel | -11 -10 -9 -9 -8 ------- Run | Yrd Mat Mat Min Mat Active Infowar (turns) 357 | . 357 . . . Sensors 357 | . 357 . . . Robot Analysis Total . | . . . . . Derelict Logs Recovered 1 | . . . 1 . Drone Launches . | . . . . . Drone Recoveries . | . . . . . Exploration | -11 -10 -9 -9 -8 ------------- Run | Yrd Mat Mat Min Mat Turns Passed 4184 | 122 690 1488 1503 381 Spaces Moved 2153 | 85 363 703 868 134 Core 67 | 6 . . . 61 Treads 1679 | . 35 703 868 73 Legs 407 | 79 328 . . . Wheels . | . . . . . Hover . | . . . . . Flight . | . . . . . Fastest Speed 50 | 50 120 160 160 160 Average Speed 160 | 115 140 169 160 201 Slowest Speed 400 | 120 320 320 160 400 Overloaded Moves . | . . . . . Propulsion Burnouts . | . . . . . Robots Hopped . | . . . . . Potential Cave-ins . | . . . . . Cave-ins Triggered . | . . . . . Exploration Rate (%) 43 | 4 56 49 101 9 Regions Visited 4 Branch Regions 1 Pre-discovered Areas . | . . . . . Known Exits Taken . | . . . . . Unknown Exits Taken 4 | 1 1 1 1 . Scrap Searched 1 | . . . 1 . Spaces Dug . | . . . . . Terrain Destroyed 29 | . 18 6 5 . Melee . | . . . . . Projectile 11 | . . 6 5 . AOE 18 | . 18 . . . Terrain Rammed . | . . . . . Walls Destroyed . | . . . . . Machines Disabled . | . . . . . Actions | -11 -10 -9 -9 -8 --------- Run | Yrd Mat Mat Min Mat Total 2547 | 105 471 863 917 191 Wait 98 | . 42 41 7 8 Move 2149 | 84 362 702 867 134 Hop . | . . . . . Pick Up 41 | 13 9 16 . 3 Fast Attach 6 | . 1 5 . . Attach 17 | 6 3 4 1 3 Detach . | . . . . . Swap 19 | . 9 8 . 2 Drop 21 | . 4 17 . . Fire 159 | 2 37 70 29 21 Melee . | . . . . . Ram 20 | . . . . 20 Kick 3 | . 3 . . . Crush 14 | . 1 . 13 . Escape Stasis . | . . . . . Rewire . | . . . . . Trap . | . . . . . Miscellaneous . | . . . . . Route ------- -11/Scrapyard -10/Materials (discovered 2 exits: *Mat x2) -9/Materials -9/Mines (discovered 2 exits: [*Mat x2]) -8/Materials History --------- Turn | Location | Event 8 | -11/Scrapyard | Discovered new exit (range 15) 123 | -11/Scrapyard | Entered Materials 301 | -10/Materials | Build established: Mutant 516 | -10/Materials | Discovered new exit (range 9) 675 | -10/Materials | Discovered new exit (range 15) 813 | -10/Materials | Entered another Materials area 813 | -9/Materials | Evolved 2 slots: Propulsion x2 1809 | -9/Materials | Discovered new exit (range 8) 2301 | -9/Materials | Entered Mines 2396 | -9/Mines | Discovered new exit (range 6) 2591 | -9/Mines | Assisted by bots powering up and referring to "LRC-V3" 2683 | -9/Mines | Discovered new exit (range 16) 2713 | -9/Mines | Learned Materials terminal intel 3804 | -9/Mines | Entered Materials 3804 | -8/Materials | Accompanied by 1 ally 3804 | -8/Materials | Evolved 2 slots: Utility x2 3805 | -8/Materials | Loaded intel: 12 terminal locations 4013 | -8/Materials | Lost 9 parts (1p4n4w) 4123 | -8/Materials | Core integrity fell below 50% 4169 | -8/Materials | Core integrity fell below 20% 4185 | -8/Materials | Destroyed by Y-45 Defender with Beam Rifle Last Messages --------------- 04047_ K-01 Serf collects debris. 04048_ Acquired 28 matter. 04051_ K-01 Serf collects debris. 04053_ Acquired Lgt. Ion Engine. 04055_ K-01 Serf collects debris. 04085_ Hacking Suite destroyed. 04090_ K-01 Serf cleans the Matter Filter. 04115_ Slammed into Y-45 Defender. 04124_ R-06 Scavenger collects Imp. Heat Sink. 04127_ Matter Filter disabled. 04137_ Slammed into Y-45 Defender. 04137_ Field Laser broken. 04137_ Destabilizing: Short circuit. 04139_ Broken Field Laser destroyed. 04140_ Slammed into Y-45 Defender. 04163_ Critical hit (Burn: +37). 04164_ Slammed into Y-45 Defender. 04168_ Destabilizing: Core damaged (-27). 04170_ Slammed into Y-45 Defender. 04178_ Critical hit (Burn: +37). Map ----- +----------------------------------------------------+ | ????????????????# #????????????????????????????? | | ????????????????# #????????????????????????????? | | ????????????????# #????????????????????????????? | | ????????????????# ##########???????????????????? | | ??????########### # #???????????????????? | | ??????# # # """ [#???????????????????? | | ??????# # # """"" #???????????????????? | | ??????# # # """"" #???????????????????? | | ??????# # # """"" #???????????????????? | | ??????# %! # # """ #???????????????????? | | ??????# ! / + #???????????????????? | | ??????# ! # # ! #???????????????????? | | ??????# # # ! #???????????????????? | | ??????########### ##########???????????????????? | | ??????# # #???????????????????????????? | | ??????#""""" # #???????????????????????????? | | ??????#"""" + " #???????????????????"""?????? | | ??????#""""" %# #???????????????????"T"?????? | | ??????#""""" # #???????????????????????????? | | ??????#""""" ##% ##???????????????????????????? | | ??????#""""" ## #????????????????????????????? | | ??????#""""" ##% #????????????????????????????? | | ??????# ! ## %#????????????????????????????? | | ??????###########%! #????????????????????????????? | | ????????????????# %*##########???????????????????? | | ????????????????# ! #%%%%@Y% #???????????????????? | | ????????????????# #%""%"" #???????????????????? | | ????????????????# #%""""" #???????????????????? | | ????????????????# #%""""" #???????????????????? | | ????????????????# +%""""" !#???????????????????? | | ????????????????# #k""""" #???????????????????? | | ????????????????# #r%"""" +???????????????????? | | ????????????????# # %"""" ##??????????????????? | | ????????????????# # #???????????????T???? | | ????????????????# ##########???????????????????? | | ????????????????# #????????????????????????????? | | ????????????????+ #????????????????????????????? | | ????????????????# #????????????????????????????? | | ????????????????# #????????????????????????????? | | ????????????????# #????????????????????????????? | | ???????????????? ?????????????????????????????? | | ???????????????? ????????????????????????????T? | | ???????????????? ?????????????????????????????? | | ???????????"?"??? ?????????????????????????????? | | ???????????"T"???????????????????????????????????? | | ???????????"""???????????????????????????????????? | | ?????????????????????????????????????????????????? | | ?????????????????????????????????????????????????? | | ?????????????????????????????????????????????????? | | ?????????????????????????????????????????????????? | +----------------------------------------------------+ Best States ------------- Heat Dissipation 31 Energy Generation 12 Energy Capacity 265 Matter Stores 300 Matter Capacity 350 Sight Range 16 Robot Scan Range 14 Terrain Scan Density 10 Evasion (%) 55 Recoil Reduction 4 Offensive Hacking 10 Item Schematics ----------------- None Robot Schematics ------------------ None Fabricated ------------ Nothing Repaired ---------- Nothing Alien Tech Used ----------------- None Achievements -------------- None Challenges ------------ None Game ------ Seed IntegratedTargetingDetonator Manual? 0 Play Time 00:39:33 Cumulative 35.9 hours Start 2025.05.12 @ 17:49:00 End 2025.07.31 @ 23:00:37 Sessions 10 Manual Loads 0 Difficulty Rogue Special Mode None Game No. 41 Rogue 41 Adventurer 0 Explorer 0 Win Type - Total 1 Types 1/0/0/0/0/0/0/0/0/0 Lore% 7 Gallery% 24 Achievement% 28 Wizard Run 0 Options --------- Layout 2 ASCII 0 Keyboard 0 Movement Mouse Keybinds 0 Fullscreen 1 Font 24/Smallcaps Map View 50x44 Zoom Use 0% Tactical HUD 1 Map Filters NONE Filters NONE Steam 1 RUN: 09592238-ea43-46be-a8e7-504dc1205f42